lending/lending_fUSD_20240621
["ID","MTS","AMOUNT","RATE_DAILY","PERIOD"]
[330085277,1718989864506,-1274.46,0.0002356,4]
[330085278,1718989864517,-500.0,0.0002356,4]
[330085279,1718989864527,-500.0,0.0002356,4]
[330085280,1718989864536,-1390.32,0.0002356,4]
[330085281,1718989864547,-2085.31,0.0002356,4]
[330085282,1718989864557,-2038.36,0.0002356,4]
[330085283,1718989864566,-500.0,0.0002356,4]
[330085284,1718989864577,-961.12,0.0002356,4]
[330085285,1718989864586,-875.07,0.0002356,4]
[330085286,1718989864596,-500.0,0.0002356,4]
[330085287,1718989864606,-727.93,0.0002356,4]
[330085288,1718989864616,-1432.85,0.0002356,4]
[330085289,1718989864625,-1981.72,0.0002356,4]
[330085290,1718989864636,-500.0,0.0002356,4]
[330085291,1718989864646,-1176.2,0.0002356,4]
[330085292,1718989864656,-500.0,0.0002356,4]
[330085293,1718989864666,-1836.11,0.0002356,4]
[330085294,1718989864676,-1666.62,0.0002356,4]
[330085295,1718989864686,-1088.29,0.0002356,4]
[330085296,1718989864697,-500.0,0.0002356,4]
[330085297,1718989864707,-500.0,0.0002356,4]
[330085298,1718989864717,-500.0,0.0002356,4]
[330085299,1718989864727,-1712.42,0.0002356,4]
[330085300,1718989864737,-5000.0,0.0002356,4]
[330085301,1718989864746,-864.04,0.0002356,4]
[330085302,1718989864757,-1441.44,0.0002356,4]
[330085303,1718989864769,-500.0,0.0002356,4]
[330085304,1718989864778,-664.38,0.0002356,4]
[330085305,1718989864788,-914.89,0.0002356,4]
[330085306,1718989864798,-1656.03,0.0002356,4]
[330085307,1718989864808,-2699.53,0.0002356,4]
[330085308,1718989864818,-1310.25,0.0002356,4]
[330085309,1718989864828,-4009.92,0.0002356,4]
[330085310,1718989864838,-1193.59,0.0002356,4]
[330085311,1718989864847,-500.0,0.00023561,3]
[330085312,1718989864857,-500.0,0.00023561,4]
[330085313,1718989864866,-500.0,0.00023561,4]
[330085314,1718989864876,-500.0,0.00023561,4]
[330085315,1718989864885,-283.61499232,0.00023561,4]
[330085316,1718989864896,-710.94,0.00023561,4]
[330085317,1718989864906,-500.0,0.00023561,4]
[330085318,1718989864915,-797.24,0.00023561,4]
[330085319,1718989864924,-617.5,0.00023561,4]
[330085320,1718989864934,-500.0,0.00023561,4]
[330085321,1718989864943,-500.0,0.00023561,4]
[330085322,1718989864953,-500.0,0.00023561,4]
[330085323,1718989864962,-798.04,0.00023561,4]
[330085324,1718989864972,-735.75,0.00023561,4]
[330085325,1718989864981,-500.0,0.00023561,4]
[330085326,1718989864991,-500.0,0.00023561,4]
[330085327,1718989865001,-500.0,0.00023561,4]
[330085328,1718989865011,-754.93,0.00023561,4]
[330085329,1718989865021,-595.79,0.00023561,4]
[330085330,1718989865031,-738.1,0.00023561,4]
[330085331,1718989865040,-1205.55,0.00023561,4]
[330085332,1718989865050,-500.0,0.00023561,2]
[330085333,1718989865061,-500.0,0.00023561,4]
[330085334,1718989865071,-522.35,0.00023561,4]
[330085335,1718989865080,-985.93,0.00023561,4]
[330085336,1718989865092,-500.0,0.00023561,4]
[330085337,1718989865104,-668.33,0.00023561,4]
[330085338,1718989865114,-500.0,0.00023561,4]
[330085339,1718989865124,-548.21,0.00023561,4]
[330085340,1718989865135,-679.56,0.00023561,4]
[330085341,1718989865144,-500.0,0.00023561,4]
[330085342,1718989865157,-500.0,0.00023561,4]
[330085343,1718989865166,-500.0,0.00023561,4]
[330085344,1718989865176,-780.77,0.00023561,4]
[330085345,1718989865186,-500.0,0.00023561,4]
[330085346,1718989865196,-582.75,0.00023561,4]
[330085347,1718989865206,-500.0,0.00023561,4]
[330085348,1718989865216,-500.0,0.00023561,4]
[330085349,1718989865225,-500.0,0.00023561,4]
[330085350,1718989865235,-584.71,0.00023561,4]
[330085351,1718989865244,-563.5,0.00023561,4]
[330085352,1718989865253,-1042.2,0.00023561,4]
[330085353,1718989865263,-500.0,0.00023561,4]
[330085354,1718989865272,-588.19,0.00023561,4]
[330085355,1718989865282,-687.44,0.00023561,4]
[330085356,1718989865292,-811.36,0.00023561,4]
[330085357,1718989865302,-717.66,0.00023561,4]
[330085358,1718989865312,-621.56,0.00023561,4]
[330085359,1718989865322,-531.24,0.00023561,4]
[330085360,1718989865331,-500.0,0.00023561,4]
[330085361,1718989865341,-500.0,0.00023561,4]
[330085362,1718989865351,-1201.37,0.00023561,4]
[330085363,1718989865360,-421.39745079,0.00023561,4]
[330085364,1718989865370,-500.0,0.00023561,4]
[330085365,1718989865380,-500.0,0.00023561,4]
[330085366,1718989865389,-500.0,0.00023561,4]
[330085367,1718989865401,-522.9,0.00023561,4]
[330085368,1718989865410,-742.2,0.00023561,4]
[330085369,1718989865419,-500.0,0.00023561,4]
[330085370,1718989865428,-500.0,0.00023561,4]
[330085371,1718989865437,-500.0,0.00023561,4]
[330085372,1718989865447,-1192.22,0.00023561,4]
[330085373,1718989865457,-500.0,0.00023561,4]
[330085374,1718989865466,-500.0,0.00023561,4]
[330085375,1718989865476,-938.16,0.00023561,4]
[330085376,1718989865485,-500.0,0.00023561,4]
[330085377,1718989865495,-1372.38,0.00023561,4]
[330085378,1718989865505,-500.0,0.00023561,4]
[330085379,1718989865515,-500.0,0.00023561,4]
[330085380,1718989865525,-500.0,0.00023561,4]
[330085381,1718989865534,-319.58211431,0.00023561,4]
[330085382,1718989865544,-624.64,0.00023561,4]
[330085383,1718989865554,-500.0,0.00023561,4]
[330085384,1718989865567,-1457.99,0.00023561,4]
[330085385,1718989865582,-500.0,0.00023561,4]
[330085386,1718989865591,-511.55,0.00023561,4]
[330085387,1718989865601,-500.0,0.00023561,4]
[330085388,1718989865611,-500.0,0.00023561,4]
[330085389,1718989865621,-595.44,0.00023561,4]
[330085390,1718989865631,-963.23,0.00023561,4]
[330085391,1718989865641,-500.0,0.00023561,4]
[330085392,1718989865653,-759.23,0.00023561,4]
[330085393,1718989865663,-500.0,0.00023561,4]
[330085394,1718989865673,-151.0,0.00023561,7]
[330085395,1718989865683,-1020.76,0.00023561,4]
[330085396,1718989865692,-500.0,0.00023561,4]
[330085397,1718989866016,-500.0,0.00023561,4]
[330085398,1718989866028,-1064.78,0.00023561,4]
[330085399,1718989866038,-873.22,0.00023561,4]
[330085400,1718989866048,-500.0,0.00023561,4]
[330085401,1718989866058,-500.0,0.00023561,4]
[330085402,1718989866068,-733.93,0.00023561,4]
[330085403,1718989866078,-2686.69,0.00023561,4]
[330085404,1718989866089,-1011.28,0.00023561,4]
[330085405,1718989866103,-852.94,0.00023561,4]
[330085406,1718989866114,-554.48,0.00023561,4]
[330085407,1718989866123,-500.0,0.00023561,4]
[330085408,1718989866134,-500.0,0.00023561,4]
[330085409,1718989866144,-500.0,0.00023561,4]
[330085410,1718989866155,-500.0,0.00023561,4]
[330085411,1718989866165,-500.0,0.00023561,4]
[330085412,1718989866180,-500.0,0.00023561,4]
[330085413,1718989866189,-500.0,0.00023561,4]
[330085414,1718989866199,-500.0,0.00023561,4]
[330085415,1718989866209,-500.0,0.00023561,4]
[330085416,1718989866219,-500.0,0.00023561,4]
[330085417,1718989866229,-500.0,0.00023561,4]
[330085418,1718989866240,-500.0,0.00023561,4]
[330085419,1718989866250,-500.0,0.00023561,4]
[330085420,1718989866260,-500.0,0.00023561,4]
[330085421,1718989866270,-500.0,0.00023561,4]
[330085422,1718989866280,-768.74,0.00023561,4]
[330085423,1718989866291,-500.0,0.00023561,4]
[330085424,1718989866300,-500.0,0.00023561,4]
[330085425,1718989866310,-500.0,0.00023561,4]
[330085426,1718989866320,-1467.03,0.00023561,4]
[330085427,1718989866330,-500.0,0.00023561,4]
[330085428,1718989866339,-500.0,0.00023561,4]
[330085429,1718989866349,-186.91302858,0.00023561,4]
[330085430,1718989866359,-1066.65,0.00023561,4]
[330085431,1718989866369,-735.92,0.00023561,4]
[330085432,1718989866379,-500.0,0.00023561,4]
[330085433,1718989866388,-500.0,0.00023561,4]
[330085434,1718989866400,-500.0,0.00023561,4]
[330085435,1718989866409,-899.57,0.00023561,4]
[330085436,1718989866419,-1342.26,0.00023561,4]
[330085437,1718989866428,-500.0,0.00023561,4]
[330085438,1718989866438,-500.0,0.00023561,4]
[330085439,1718989866447,-500.0,0.00023561,4]
[330085440,1718989866457,-585.36,0.00023561,4]
[330085441,1718989866467,-509.69,0.00023561,4]
[330085442,1718989866477,-667.28,0.00023561,4]
[330085443,1718989866486,-500.0,0.00023561,4]
[330085444,1718989866496,-2179.3,0.00023561,4]
[330085445,1718989866506,-858.28,0.00023561,4]
[330085446,1718989866516,-906.35,0.00023561,4]
[330085447,1718989866526,-500.0,0.00023561,4]
[330085448,1718989866535,-500.0,0.00023561,4]
[330085449,1718989866545,-559.84,0.00023561,4]
[330085450,1718989866555,-500.0,0.00023561,4]
[330085451,1718989866565,-500.0,0.00023561,4]
[330085452,1718989866579,-1415.8,0.00023561,4]
[330085453,1718989866593,-500.0,0.00023561,4]
[330085454,1718989866603,-1930.31,0.00023561,4]
[330085455,1718989866612,-1505.14,0.00023561,4]
[330085456,1718989866623,-859.86,0.00023561,4]
[330085457,1718989866634,-500.0,0.00023561,4]
[330085458,1718989866643,-642.24,0.00023561,4]
[330085459,1718989866655,-1397.1,0.00023561,4]
[330085460,1718989866665,-602.59,0.00023561,4]
[330085461,1718989866675,-570.91,0.00023561,4]
[330085462,1718989866688,-669.19,0.00023561,4]
[330085463,1718989866699,-500.0,0.00023561,4]
[330085464,1718989866708,-1901.91,0.00023561,4]
[330085465,1718989866717,-1273.57,0.00023561,4]
[330085466,1718989866728,-500.0,0.00023561,4]
[330085467,1718989866737,-500.0,0.00023561,4]
[330085468,1718989866746,-500.0,0.00023561,4]
[330085469,1718989866756,-500.0,0.00023561,4]
[330085470,1718989866766,-963.28,0.00023561,4]
[330085471,1718989866776,-532.82,0.00023561,4]
[330085472,1718989866785,-500.0,0.00023561,4]
[330085473,1718989866796,-2148.29,0.00023561,4]
[330085474,1718989866806,-904.13,0.00023561,4]
[330085475,1718989866815,-500.0,0.00023561,4]
[330085476,1718989866825,-500.0,0.00023561,4]
[330085477,1718989866835,-1923.19,0.00023561,4]
[330085478,1718989866846,-1655.82,0.00023561,4]
[330085479,1718989866855,-500.0,0.00023561,4]
[330085480,1718989866865,-590.93,0.00023561,4]
[330085481,1718989866875,-511.56,0.00023561,4]
[330085482,1718989866884,-1612.01,0.00023561,4]
[330085483,1718989866894,-500.0,0.00023561,4]
[330085484,1718989866906,-500.0,0.00023561,4]
[330085485,1718989866916,-2137.42,0.00023561,4]
[330085486,1718989866926,-573.05,0.00023561,4]
[330085487,1718989866936,-3053.94,0.00023561,4]
[330085488,1718989866946,-500.0,0.00023561,4]
[330085489,1718989866956,-500.0,0.00023561,4]
[330085490,1718989866966,-500.0,0.00023561,4]
[330085491,1718989866976,-639.37,0.00023561,4]
[330085492,1718989866986,-2243.82,0.00023561,4]
[330085493,1718989866996,-500.0,0.00023561,4]
[330085494,1718989867006,-682.46,0.00023561,4]
[330085495,1718989867016,-1600.73,0.00023561,4]
[330085496,1718989867026,-500.0,0.00023561,4]
[330085497,1718989867036,-500.0,0.00023561,4]
[330085498,1718989867046,-696.06,0.00023561,4]
[330085499,1718989867055,-1542.7,0.00023561,4]
[330085500,1718989867065,-1105.98,0.00023561,4]
[330085501,1718989867076,-1549.93,0.00023561,4]
[330085502,1718989867086,-833.57,0.00023561,4]
[330085503,1718989867097,-2659.75,0.00023561,4]
[330085504,1718989867109,-500.0,0.00023561,4]
[330085505,1718989867119,-500.0,0.00023561,4]
[330085506,1718989867129,-1158.3,0.00023561,4]
[330085507,1718989867139,-500.0,0.00023561,4]
[330085508,1718989867152,-833.78,0.00023561,4]
[330085509,1718989867161,-533.64,0.00023561,4]
[330085510,1718989867170,-500.0,0.00023561,4]
[330085511,1718989867182,-685.86,0.00023561,4]
[330085512,1718989867192,-1289.2,0.00023561,4]
[330085513,1718989867201,-500.0,0.00023561,4]
[330085514,1718989867211,-1090.97,0.00023561,4]
[330085515,1718989867221,-599.47,0.00023561,4]
[330085516,1718989867231,-564.52050207,0.00023561,4]
[330085517,1718989867241,-591.52,0.00023561,4]
[330085518,1718989867251,-2819.08,0.00023561,4]
[330085519,1718989867260,-550.07,0.00023561,4]
[330085520,1718989867270,-7009.44,0.00023561,4]
[330085521,1718989867280,-1505.93,0.00023561,4]
[330085522,1718989867289,-824.93,0.00023561,4]
[330085523,1718989867299,-500.0,0.00023561,4]
[330085524,1718989867309,-500.0,0.00023561,4]
[330085525,1718989867319,-3331.02,0.00023561,4]
[330085526,1718989867329,-1405.37,0.00023561,4]
[330085527,1718989867339,-5922.66,0.00023561,4]
[330085528,1718989867349,-500.0,0.00023561,4]
[330085529,1718989867359,-905.75,0.00023561,4]
[330085530,1718989867368,-6608.91,0.00023561,4]
[330085531,1718989867378,-500.0,0.00023561,4]
[330085532,1718989867387,-580.05,0.00023561,4]
[330085533,1718989867399,-500.0,0.00023561,4]
[330085534,1718989867408,-540.71,0.00023561,4]
[330085535,1718989867417,-227.20349815,0.00023561,4]
[330085536,1718989867427,-838.13,0.00023561,4]
[330085537,1718989867437,-500.0,0.00023561,4]
[330085538,1718989867447,-535.25,0.00023561,4]
[330085539,1718989867456,-823.35,0.00023561,4]
[330085540,1718989867466,-887.04,0.00023561,4]
[330085541,1718989867475,-1378.35,0.00023561,4]
[330085542,1718989867484,-500.0,0.00023561,4]
[330085543,1718989867494,-500.0,0.00023561,4]
[330085544,1718989867504,-1812.66,0.00023561,4]
[330085545,1718989867514,-1256.45,0.00023561,4]
[330085546,1718989867523,-647.36,0.00023561,4]
[330085547,1718989867533,-772.11,0.00023561,4]
[330085548,1718989867542,-500.0,0.00023561,4]
[330085549,1718989867552,-500.0,0.00023561,4]
[330085550,1718989867562,-500.0,0.00023561,4]
[330085551,1718989867571,-500.0,0.00023561,4]
[330085552,1718989867581,-939.73,0.00023561,4]
[330085553,1718989867590,-500.0,0.00023561,4]
[330085554,1718989867600,-1304.96,0.00023561,4]
[330085555,1718989867610,-500.0,0.00023561,4]
[330085556,1718989867619,-500.0,0.00023561,4]
[330085557,1718989867629,-577.19,0.00023561,4]
[330085558,1718989867639,-500.0,0.00023561,4]
[330085559,1718989867650,-1184.79,0.00023561,4]
[330085560,1718989867660,-500.0,0.00023561,4]
[330085561,1718989867669,-500.0,0.00023561,4]
[330085562,1718989867679,-500.0,0.00023561,4]
[330085563,1718989867689,-1482.67,0.00023561,4]
[330085564,1718989867698,-1172.14,0.00023561,4]
[330085565,1718989867710,-602.36,0.00023561,4]
[330085566,1718989867720,-500.0,0.00023561,4]
[330085567,1718989867730,-500.0,0.00023561,4]
[330085568,1718989867738,-500.0,0.00023561,4]
[330085569,1718989867748,-1060.14,0.00023561,4]
[330085570,1718989867758,-438.22088384,0.00023561,4]
[330085571,1718989867768,-3886.53,0.00023561,4]
[330085572,1718989867777,-654.99,0.00023561,4]
[330085573,1718989867787,-1021.14,0.00023561,4]
[330085574,1718989867796,-500.0,0.00023561,4]
[330085575,1718989867807,-25963.77,0.00023561,4]
[330085576,1718989867816,-1656.59,0.00023561,4]
[330085577,1718989867826,-1438.15,0.00023561,4]
[330085578,1718989867836,-500.0,0.00023561,4]
[330085579,1718989867846,-1558.07,0.00023561,4]
[330085580,1718989867856,-500.0,0.00023561,4]
[330085581,1718989867865,-1206.43,0.00023561,4]
[330085582,1718989867875,-1774.24,0.00023561,4]
[330085583,1718989867885,-1123.84,0.00023561,4]
[330085584,1718989867896,-1807.53,0.00023561,4]
[330085585,1718989867907,-1718.78,0.00023561,4]
[330085586,1718989867917,-500.0,0.00023561,4]
[330085587,1718989867926,-500.0,0.00023561,4]
[330085588,1718989867936,-500.0,0.00023561,4]
[330085589,1718989867947,-500.0,0.00023561,4]
[330085590,1718989867957,-736.5,0.00023561,4]
[330085591,1718989867967,-500.0,0.00023561,4]
[330085592,1718989867978,-500.0,0.00023561,4]
[330085593,1718989867988,-223.35414433,0.00023561,4]
[330085594,1718989867997,-500.0,0.00023561,7]
[330085595,1718989868007,-500.0,0.00023561,4]
[330085596,1718989868016,-150.0,0.00023562,2]
[330085597,1718989868026,-150.0,0.00023563,2]
[330085598,1718989868035,-300.0,0.00023564,2]
[330085599,1718989868044,-150.0,0.00023565,2]
[330085600,1718989868053,-300.0,0.00023565,2]
[330085601,1718989868063,-150.0,0.00023569,2]
[330085602,1718989868072,-150.0,0.00023571,2]
[330085603,1718989868081,-300.0,0.00023575,2]
[330085604,1718989868095,-1500.0,0.00023575,2]
[330085605,1718989868104,-150.0,0.00023575,2]
[330085606,1718989868114,-150.0,0.00023577,2]
[330085607,1718989868123,-150.0,0.0002358,2]
[330085608,1718989868133,-150.0,0.0002358,2]
[330085609,1718989868143,-300.0,0.00023582,2]
[330085610,1718989868155,-150.0,0.0002359,2]
[330085611,1718989868164,-150.0,0.0002359,2]
[330085612,1718989868176,-150.0,0.00023591,2]
[330085613,1718989868185,-150.0,0.00023593,2]
[330085614,1718989868195,-150.0,0.00023596,2]
[330085615,1718989868204,-154.46591997,0.00023599,2]
[330085616,1718989868214,-101896.38550241,0.000236,2]
[330085617,1718989868223,-3000.0,0.000236,4]
[330085618,1718989868232,-114976.97572221,0.000236,2]
[330085619,1718989868241,-118430.63877538,0.000236,2]
[330085620,1718989868251,-150.0,0.000236,2]
[330085621,1718989868261,-1500.0,0.00023606,2]
[330085622,1718989868272,-300.0,0.00023608,2]
[330085623,1718989868282,-3108.24996426,0.0002361,2]
[330085624,1718989868291,-150.0,0.0002361,2]
[330085625,1718989868301,-150.0,0.00023611,2]
[330085626,1718989868311,-150.0,0.00023613,2]
[330085627,1718989868321,-150.0,0.00023614,2]
[330085628,1718989868331,-150.0,0.00023616,2]
[330085629,1718989868341,-3000.0,0.0002362,7]
[330085630,1718989868351,-150.0,0.0002362,2]
[330085631,1718989868360,-300.0,0.0002362,2]
[330085632,1718989868371,-1500.0,0.0002362,2]
[330085633,1718989868380,-300.0,0.00023621,2]
[330085634,1718989868390,-150.0,0.00023622,2]
[330085635,1718989868403,-150.0,0.00023623,2]
[330085636,1718989868413,-1500.0,0.00023625,2]
[330085637,1718989868422,-1500.0,0.00023625,2]
[330085638,1718989868432,-1500.0,0.00023626,2]
[330085639,1718989868443,-150.0,0.00023632,2]
[330085640,1718989868456,-150.0,0.00023636,2]
[330085641,1718989868466,-1500.0,0.00023637,2]
[330085642,1718989868477,-150.0,0.00023641,2]
[330085643,1718989868487,-300.0,0.00023642,2]
[330085644,1718989868496,-150.0,0.00023643,2]
[330085645,1718989868506,-150.0,0.0002365,2]
[330085646,1718989868515,-150.0,0.00023655,2]
[330085647,1718989868526,-150.0,0.00023656,2]
[330085648,1718989868535,-300.0,0.00023659,2]
[330085649,1718989868545,-150.0,0.0002366,2]
[330085650,1718989868556,-1500.0,0.00023662,2]
[330085651,1718989868565,-300.0,0.00023663,2]
[330085652,1718989868574,-150.0,0.00023667,2]
[330085653,1718989868583,-150.0,0.00023669,2]
[330085654,1718989868593,-1500.0,0.00023673,2]
[330085655,1718989868602,-150.0,0.00023675,2]
[330085656,1718989868612,-150.0,0.00023682,2]
[330085657,1718989868621,-1500.0,0.00023684,2]
[330085658,1718989868631,-150.0,0.00023685,2]
[330085659,1718989868640,-150.0,0.00023686,2]
[330085660,1718989868653,-150.0,0.00023688,2]
[330085661,1718989868662,-300.0,0.00023688,2]
[330085662,1718989868671,-150.0,0.00023688,2]
[330085663,1718989868679,-172.85,0.00023689,2]
[330085664,1718989868689,-300.0,0.00023689,2]
[330085665,1718989868699,-150.0,0.00023689,2]
[330085666,1718989868709,-150.0,0.00023691,2]
[330085667,1718989868719,-150.0,0.00023691,2]
[330085668,1718989868729,-150.0,0.00023691,2]
[330085669,1718989868740,-1500.0,0.00023694,2]
[330085670,1718989868749,-150.0,0.00023695,2]
[330085671,1718989868760,-150.0,0.00023697,2]
[330085672,1718989868771,-150.0,0.00023697,2]
[330085673,1718989868782,-150.0,0.00023699,2]
[330085674,1718989868793,-150.0,0.000237,2]
[330085675,1718989868802,-150.0,0.00023704,2]
[330085676,1718989868812,-150.0,0.00023706,2]
[330085677,1718989868821,-150.0,0.00023706,2]
[330085678,1718989868831,-300.0,0.00023712,2]
[330085679,1718989868841,-150.0,0.00023713,2]
[330085680,1718989868851,-1500.0,0.00023713,2]
[330085681,1718989868860,-150.0,0.00023714,2]
[330085682,1718989868870,-150.0,0.00023716,2]
[330085683,1718989868879,-150.0,0.00023718,2]
[330085684,1718989868888,-300.0,0.0002372,2]
[330085685,1718989868900,-150.0,0.0002372,2]
[330085686,1718989868910,-150.0,0.00023721,2]
[330085687,1718989868919,-1500.0,0.00023724,2]
[330085688,1718989868928,-150.0,0.00023728,2]
[330085689,1718989868937,-300.0,0.00023731,2]
[330085690,1718989868947,-150.0,0.00023732,2]
[330085691,1718989868957,-150.0,0.00023738,2]
[330085692,1718989868966,-150.0,0.00023747,2]
[330085693,1718989868976,-155.0,0.0002375,2]
[330085694,1718989868986,-150.0,0.0002375,2]
[330085695,1718989868996,-150.0,0.00023759,2]
[330085696,1718989869006,-1500.0,0.0002376,2]
[330085697,1718989869015,-150.0,0.00023764,2]
[330085698,1718989869025,-1500.0,0.00023765,2]
[330085699,1718989869035,-150.0,0.00023766,2]
[330085700,1718989869045,-150.0,0.00023767,2]
[330085701,1718989869056,-150.0,0.00023773,2]
[330085702,1718989869065,-150.0,0.00023773,2]
[330085703,1718989869075,-150.0,0.00023775,2]
[330085704,1718989869085,-300.0,0.00023776,2]
[330085705,1718989869100,-150.0,0.00023777,2]
[330085706,1718989869111,-150.0,0.00023779,2]
[330085707,1718989869120,-150.0,0.00023784,2]
[330085708,1718989869130,-1500.0,0.00023785,2]
[330085709,1718989869142,-300.0,0.00023788,2]
[330085710,1718989869154,-150.0,0.00023789,2]
[330085711,1718989869163,-1500.0,0.00023793,2]
[330085712,1718989869175,-150.0,0.00023793,2]
[330085713,1718989869186,-150.0,0.00023795,2]
[330085714,1718989869196,-150.0,0.00023796,2]
[330085715,1718989869206,-150.0,0.00023797,2]
[330085716,1718989869215,-150.0,0.00023797,2]
[330085717,1718989869226,-150.0,0.00023798,2]
[330085718,1718989869236,-1500.0,0.00023799,2]
[330085719,1718989869246,-4500.0,0.000238,5]
[330085720,1718989869257,-150.0,0.000238,2]
[330085721,1718989869267,-276.29614339,0.00023805,2]
[330085722,1718989869278,-150.0,0.00023805,2]
[330085723,1718989869287,-4848.35494842,0.0002381,2]
[330085724,1718989869299,-150.0,0.0002381,2]
[330085725,1718989869309,-1356.86,0.00023811,4]
[330085726,1718989869318,-3062.37,0.00023811,4]
[330085727,1718989869328,-1533.09,0.00023811,4]
[330085728,1718989869339,-5990.91,0.00023811,4]
[330085729,1718989869349,-1110.17,0.00023811,4]
[330085730,1718989869359,-11925.19,0.00023811,4]
[330085731,1718989869368,-3672.46,0.00023811,4]
[330085732,1718989869378,-6178.73,0.00023811,4]
[330085733,1718989869388,-1501.96,0.00023811,4]
[330085734,1718989869400,-500.0,0.00023811,4]
[330085735,1718989869409,-3518.52,0.00023811,4]
[330085736,1718989869419,-16602.73,0.00023811,4]
[330085737,1718989869428,-150.0,0.00023812,2]
[330085738,1718989869437,-150.0,0.00023814,2]
[330085739,1718989869449,-150.0,0.00023815,2]
[330085740,1718989869458,-150.0,0.00023815,2]
[330085741,1718989869468,-150.0,0.00023818,2]
[330085742,1718989869477,-9692.9335438,0.00023819,2]
[330085743,1718989869487,-28877.4083869,0.00023819,2]
[330085744,1718989869496,-1715.1704011,0.00023819,2]
[330085745,1718989869505,-31594.3892799,0.00023819,2]
[330085746,1718989869515,-4491.2164138,0.00023819,2]
[330085747,1718989869524,-300.0,0.00023821,2]
[330085748,1718989869534,-300.0,0.00023822,2]
[330085749,1718989869543,-1989.12,0.00023823,4]
[330085750,1718989869552,-387.25576818,0.00023823,4]
[330085751,1718989869562,-2398.6,0.00023823,4]
[330085752,1718989869571,-42723.34,0.00023823,4]
[330085753,1718989869581,-1860.96,0.00023823,4]
[330085754,1718989869590,-7757.24,0.00023823,4]
[330085755,1718989869599,-2969.44,0.00023823,4]
[330085756,1718989869608,-500.0,0.00023823,2]
[330085757,1718989869618,-2619.5,0.00023823,4]
[330085758,1718989869627,-4343.94,0.00023823,4]
[330085759,1718989869636,-946.76,0.00023823,4]
[330085760,1718989869646,-1067.33,0.00023823,4]
[330085761,1718989869655,-11069.13,0.00023823,4]
[330085762,1718989869664,-2041.56,0.00023823,4]
[330085763,1718989869677,-2855.93,0.00023823,4]
[330085764,1718989869687,-1902.36,0.00023823,4]
[330085765,1718989869696,-2646.94,0.00023823,4]
[330085766,1718989869705,-871.25,0.00023824,4]
[330085767,1718989869714,-2040.63,0.00023824,4]
[330085768,1718989869723,-1063.28,0.00023824,4]
[330085769,1718989869733,-2566.45,0.00023824,4]
[330085770,1718989869742,-1747.85,0.00023824,4]
[330085771,1718989869751,-574.66,0.00023824,4]
[330085772,1718989869761,-1705.93,0.00023824,4]
[330085773,1718989869771,-500.0,0.00023824,4]
[330085774,1718989869781,-500.0,0.00023824,4]
[330085775,1718989869790,-790.72,0.00023824,4]
[330085776,1718989869799,-500.0,0.00023824,4]